Cogmind - Beta 13 *** ADVENTURER MODE // 2024.03.19 @ 14:37:44 Player: skye Result: Destroyed by H-55 Commando with Gauss Rifle Performance ------------- Evolutions (2) 1000 Regions Visited (4) 800 Robots Destroyed (16) 80 Value Destroyed (290) 290 Prototype IDs (8) 160 Alien Tech Used (0) 0 Bonus (46) 46 TOTAL SCORE: 2376 Bonus ------- Follower Combat Kills 46 Cogmind --------- Core Integrity 0/550 Matter 197/300 Energy 90/100 System Corruption 1% Temperature Cool (9) Movement Core (50) Location -8/Materials Parts ------- > --- POWER (2) -------- (None) > --- PROPULSION (4) --- (None) > --- UTILITY (3) ------ Visual Processing Unit Terrain Scan Processor > --- WEAPON (2) ------- (None) > --- INVENTORY (5) ---- ECM Suite Peak State ------------ > --- POWER ------------ (None) > --- PROPULSION ------- Airjet > --- UTILITY ---------- Structural Scanner Sensor Array Reaction Control System > --- WEAPON ----------- EM Pulse Cannon EM Pulse Cannon > --- INVENTORY -------- Light Treads Heat Sink ECM Suite Light Assault Rifle Mining Laser [Rating: 14] Favorites ----------- Power Light Ion Engine Engine Light Ion Engine Propulsion Flight Unit Treads Light Treads Leg Aluminum Leg Hover Unit Airjet Flight Unit Flight Unit Utility Sensor Array Device Sensor Array Storage Small Storage Unit Processor Visual Processing Unit Protection Weapon Shielding Weapon Light Assault Rifle Energy Gun EM Pulse Gun Energy Cannon EM Pulse Cannon Ballistic Gun Light Assault Rifle Special Weapon Mining Laser Special Melee Weapon Datajack Build | -11 -10 -10 -9 -8 ------- Run | Yrd Mat Min Mat Mat Slots Evolved 4 | . . . 2 2 Power 1 | . . . . 1 Propulsion 2 | . . . 1 1 Utility 1 | . . . 1 . Weapon . | . . . . . Parts Attached 46 | 6 11 2 13 14 Power 4 | 1 2 . 1 . Engine 4 | 1 2 . 1 . Core . | . . . . . Reactor . | . . . . . Propulsion 16 | 2 2 2 6 4 Treads 3 | . . . 2 1 Leg 4 | 2 . . . 2 Wheel . | . . . . . Hover 1 | . . . . 1 Flight 8 | . 2 2 4 . Utility 15 | 1 5 . 3 6 Device 9 | . 3 . 3 3 Storage 1 | 1 . . . . Processor 4 | . 1 . . 3 Hackware . | . . . . . Protection 1 | . 1 . . . Artifact . | . . . . . Weapon 11 | 2 2 . 3 4 Energy Gun 2 | 1 . . 1 . Energy Cannon 2 | . . . . 2 Ballistic Gun 4 | 1 1 . 1 1 Ballistic Cannon . | . . . . . Launcher . | . . . . . Special Weapon 2 | . 1 . . 1 Impact Weapon . | . . . . . Slashing Weapon . | . . . . . Piercing Weapon . | . . . . . Special Melee Weapon 1 | . . . 1 . Unidentified Prototypes . | . . . . . Parts Lost 22 | . 1 . 6 15 Power 2 | . . . 1 1 Propulsion 9 | . . . 3 6 Utility 5 | . . . 1 4 Weapon 6 | . 1 . 1 4 Highest Loss Streak 5 | . 1 . 2 5 To Critical Strikes 1 | . . . . 1 Average Slot Usage (%) 73 | . 91 100 73 39 Engine 10 | . 14 14 11 2 Leg 7 | . 15 . . 5 Flight 16 | . 12 28 29 4 Device 15 | . 9 28 21 13 Storage 2 | . 6 . . . Processor 2 | . 2 . . 6 Protection 1 | . 4 . . . Energy Gun 4 | . 9 . 4 . Ballistic Gun 8 | . 14 14 4 2 Special Weapon 2 | . 2 14 . . Naked Turns . | . . . . . Heaviest Build 15 | 12 13 7 8 15 Greatest Support 30 | 20 20 8 20 30 Greatest Overweight (x) 2 | 1 . . 1 2 Average Overweight (x) . | . . . . . Largest Inventory Capacity 8 | 8 8 5 5 5 Average Capacity 5 | 6 6 5 5 5 Most Carried 6 | 2 6 5 5 5 Average Carried 3 | 1 3 5 4 3 Final Capacity 8 | 8 5 5 5 5 Final Carried 5 | 2 5 5 4 1 Class Distribution -------------------- 56% | Scavenger-Mutant 43% | Mutant Dominant Class ---------------- Mutant | -10/Materials Scavenger-Mutant | -10/Mines Scavenger-Mutant | -9/Materials Mutant | -8/Materials Resources | -11 -10 -10 -9 -8 ----------- Run | Yrd Mat Min Mat Mat Matter Collected 496 | 83 129 198 65 21 Remotely . | . . . . . Salvage Created 360 | . 192 33 114 21 Parts 41 | . 21 5 14 1 Haulers Intercepted . | . . . . . Recyclers Shooed . | . . . . . Parts Field Recycled . | . . . . . Retrieved Matter . | . . . . . Parts Self-Destructed . | . . . . . Prevented . | . . . . . Kills | -11 -10 -10 -9 -8 ------- Run | Yrd Mat Min Mat Mat Combat Hostiles Destroyed 14 | . 7 2 4 1 Guns 13 | . 7 2 4 . Cannons 1 | . . . . 1 Classes Destroyed 5 | . 3 . 2 . Worker 1 | . . . 1 . Watcher 1 | . 1 . . . Swarmer 10 | . 5 2 3 . Grunt 3 | . 2 . . 1 Sentry 1 | . . . 1 . Best Kill Streak 5 | . 5 2 3 1 Combat Bots Only 5 | . 5 2 3 1 Max Kills in Single Turn 1 | . 1 1 1 1 Gunslinging . | . . . . . Exploded . | . . . . . Melee . | . . . . . Uniques/NPCs Destroyed . | . . . . . Combat | -11 -10 -10 -9 -8 -------- Run | Yrd Mat Min Mat Mat Hostile Shots Fired 304 | . 41 8 81 174 Missed 111 | . 7 2 35 67 Damage Taken 2087 | . 236 66 506 1279 Core 799 | . 35 20 183 561 Absorbed by Shields . | . . . . . Redirected to Shielding 19 | . 19 . . . Ignored by Resistances 606 | . 77 19 148 362 Regen/Repaired (Parts) 63 | . . . 63 . Core Remaining (%) 77 | 100 . 78 54 . Volleys Fired 60 | . 20 9 21 10 Largest 2 | . 2 1 1 1 Hottest 100 | . 60 20 56 100 Shots Fired 72 | . 32 9 21 10 Gun 71 | . 32 9 21 9 Cannon . | . . . . . Launcher . | . . . . . Special 1 | . . . . 1 Kinetic 48 | . 20 9 10 9 Thermal 12 | . . . 11 1 Explosive . | . . . . . Electromagnetic 12 | . 12 . . . Robot Hit Streak 17 | . 9 4 17 12 Robot Miss Streak 3 | . 3 3 1 1 Penetration Max . | . . . . . Secondary Targets 3 | . 3 . . . Max Gunslinging Chain 1 | . 1 . . . Shots Hit Robots 57 | . 21 7 20 9 Core Hits 28 | . 12 3 8 5 Critical Kills . | . . . . . Critical Parts Destroyed . | . . . . . Critical Strikes . | . . . . . Melee Attacks . | . . . . . Impact . | . . . . . Slashing . | . . . . . Piercing . | . . . . . Sneak Attacks . | . . . . . Combat Hostiles . | . . . . . Follow-up Attacks . | . . . . . Damage Inflicted 621 | . 248 53 223 97 Guns 583 | . 248 53 223 59 Cannons . | . . . . . Explosions . | . . . . . Melee . | . . . . . Ramming 14 | . . . . 14 Kinetic 357 | . 168 53 77 59 Thermal 170 | . . . 146 24 Explosive . | . . . . . Electromagnetic 80 | . 80 . . . Impact . | . . . . . Slashing . | . . . . . Piercing . | . . . . . Highest Corruption 1 | . . . . 1 Average Corruption 1 | . . . . 1 Corruption Purged . | . . . . . Corruption Blocked . | . . . . . Overload Shots . | . . . . . Overflow Damage . | . . . . . Projectiles . | . . . . . Explosions . | . . . . . Melee . | . . . . . Knockbacks . | . . . . . Impact . | . . . . . Kinetic . | . . . . . Secondary . | . . . . . Self-Inflicted Damage 5 | . . . . 5 Shots . | . . . . . Rammed 4 | . . . . 4 Targets Rammed 5 | . . . . 5 Kicked 1 | . . . . 1 Crushed . | . . . . . Highest Temperature 80 | . 80 4 58 30 Average Temperature 23 | . 40 2 23 10 Received Heat Transfer 975 | . 75 . 189 711 Siege Activations . | . . . . . Robots Corrupted . | . . . . . Combat Hostiles . | . . . . . Parts Fried . | . . . . . Impact Corruptions . | . . . . . Robots Melted . | . . . . . Combat Hostiles . | . . . . . Parts Melted . | . . . . . Heat Transferred 420 | . . . 370 50 Parts Sabotaged . | . . . . . Parts Stolen . | . . . . . Parts Stripped . | . . . . . Power Chain Reactions . | . . . . . Alert | -11 -10 -10 -9 -8 ------- Run | Yrd Mat Min Mat Mat Peak Influence 529 | . 217 151 529 275 Initial 190 | . . 71 40 190 Average 144 | . 98 89 194 220 Maximum Alert Level 2 | . 1 . 2 1 Low Security (%) 60 | 100 70 100 59 23 Level 1 36 | . 29 . 30 76 Level 2 2 | . . . 10 . Level 3 . | . . . . . Level 4 . | . . . . . Level 5 . | . . . . . High Security . | . . . . . Max Security . | . . . . . Squads Dispatched 3 | . . . 2 1 Investigation 1 | . . . 1 . Extermination . | . . . . . Reinforcement 2 | . . . 1 1 Assault . | . . . . . Garrison . | . . . . . Intercept . | . . . . . Searches Triggered . | . . . . . Construction Impeded . | . . . . . Haulers Reinforced . | . . . . . Active Scanning Responses . | . . . . . Cargo Convoy Interrupts . | . . . . . Stealth | -11 -10 -10 -9 -8 --------- Run | Yrd Mat Min Mat Mat Distress Signals 6 | . 1 . 2 3 Communications Jammed . | . . . . . Distress Signals . | . . . . . Times Spotted 68 | . 11 5 35 17 Peak Tracking Total 16 | . 7 3 16 11 Tactical Retreats 10 | . . . 7 3 Traps | -11 -10 -10 -9 -8 ------- Run | Yrd Mat Min Mat Mat Traps Triggered 4 | . . . 2 2 Indirectly . | . . . . . Trap Hack Attempts . | . . . . . Triggered . | . . . . . Disarmed . | . . . . . Reprogrammed . | . . . . . Reused . | . . . . . Traps Extracted . | . . . . . Installed . | . . . . . Triggered . | . . . . . Machines | -11 -10 -10 -9 -8 ---------- Run | Yrd Mat Min Mat Mat Machines Disabled . | . . . . . Max in Single Turn . | . . . . . Machines Repaired . | . . . . . Machines Dismantled . | . . . . . Machines Sabotaged . | . . . . . Overloaded Fab Kills . | . . . . . Hacking | -11 -10 -10 -9 -8 --------- Run | Yrd Mat Min Mat Mat Machines Accessed 17 | . 8 1 5 3 Terminals 14 | . 7 1 3 3 Fabricators . | . . . . . Repair Stations 1 | . . . 1 . Recycling Units 2 | . 1 . 1 . Scanalyzers . | . . . . . Garrison Access . | . . . . . Total Hacks 29 | . 14 1 8 6 Successful 13 | . 3 1 5 4 Failed 16 | . 11 . 3 2 Catastrophic 12 | . 7 . 3 2 Database Lockouts . | . . . . . Manual 19 | . 12 . 4 3 Terminals 25 | . 13 1 5 6 Fabricators . | . . . . . Repair Stations 2 | . . . 2 . Recycling Units 2 | . 1 . 1 . Scanalyzers . | . . . . . Garrison Access . | . . . . . Terminal Hacks 9 | . 2 1 2 4 Prototype ID Bank 4 | . 1 . 1 2 Terminal Index 3 | . 1 . 1 1 Locate Traps 1 | . . . . 1 Dispatch Records 1 | . . 1 . . Fabricator Hacks . | . . . . . Repair Station Hacks 2 | . . . 2 . Scan Component 1 | . . . 1 . Repair 1 | . . . 1 . Recycling Unit Hacks 2 | . 1 . 1 . Report Inventory 2 | . 1 . 1 . Scanalyzer . | . . . . . Garrison Access Hacks . | . . . . . Unauthorized Hacks . | . . . . . Terminals . | . . . . . Fabricators . | . . . . . Repair Stations . | . . . . . Recycling Units . | . . . . . Scanalyzers . | . . . . . Garrison Access . | . . . . . Data Cores Recovered . | . . . . . Used . | . . . . . Hacking Detections 12 | . 8 . 2 2 Full Trace Events . | . . . . . Feedback Events . | . . . . . Feedback Blocked . | . . . . . Robot Schematics Acquired . | . . . . . Robots Built . | . . . . . Authchips . | . . . . . Time . | . . . . . Total Robot Build Rating . | . . . . . Part Schematics Acquired . | . . . . . Parts Built . | . . . . . Authchips . | . . . . . Time . | . . . . . Total Part Build Rating . | . . . . . Parts Repaired 1 | . . . 1 . Time 32 | . . . 32 . Parts Recycled . | . . . . . Recycled Matter . | . . . . . Retrieved Matter . | . . . . . Retrieved Components . | . . . . . Parts Scanalyzed . | . . . . . Part Schematics Acquired . | . . . . . Parts Damaged . | . . . . . Bothacking | -11 -10 -10 -9 -8 ------------ Run | Yrd Mat Min Mat Mat Used RIF Installer . | . . . . . Robots Hacked . | . . . . . Non-combat . | . . . . . Combat . | . . . . . Robot Hacks Applied . | . . . . . Relay Couplers Released . | . . . . . Fabnet Peak Effective % . | . . . . . Robots Rewired . | . . . . . Allies Hacked . | . . . . . Hacks Repelled . | . . . . . Allies | -11 -10 -10 -9 -8 -------- Run | Yrd Mat Min Mat Mat Total Allies 5 | . . 5 . . Largest Group 5 | . . 5 . . Highest-Rated Group 82 | . . 82 . . Highest-Rated Ally 31 | . . 31 . . Total Orders . | . . . . . Ally Attacks 8 | . . 8 . . Total Damage 117 | . . 117 . . Kills 2 | . . 2 . . Allies Corrupted . | . . . . . Allies Melted . | . . . . . Intel | -11 -10 -10 -9 -8 ------- Run | Yrd Mat Min Mat Mat Robot Analysis Total . | . . . . . Derelict Logs Recovered . | . . . . . Drone Launches . | . . . . . Drone Recoveries . | . . . . . Exploration | -11 -10 -10 -9 -8 ------------- Run | Yrd Mat Min Mat Mat Turns Passed 965 | 62 342 89 235 237 Spaces Moved 1429 | 46 415 179 472 317 Core 154 | 7 . . . 147 Treads 6 | . . . 4 2 Legs 217 | 39 130 . . 48 Wheels . | . . . . . Hover 15 | . . . . 15 Flight 1037 | . 285 179 468 105 Fastest Speed 34 | 50 37 37 34 34 Average Speed 52 | 112 63 37 36 60 Slowest Speed 160 | 120 120 37 160 160 Overloaded Moves . | . . . . . Propulsion Burnouts . | . . . . . Robots Hopped 16 | . 1 1 13 1 Cave-ins Triggered . | . . . . . Exploration Rate (%) 41 | 4 69 42 53 37 Regions Visited 4 Branch Regions 1 Pre-discovered Areas . | . . . . . Known Exits Taken . | . . . . . Unknown Exits Taken 4 | 1 1 1 1 . Scrap Searched 1 | . . 1 . . Spaces Dug . | . . . . . Terrain Destroyed . | . . . . . Melee . | . . . . . Projectile . | . . . . . AOE . | . . . . . Terrain Rammed . | . . . . . Walls Destroyed . | . . . . . Machines Disabled . | . . . . . Actions | -11 -10 -10 -9 -8 --------- Run | Yrd Mat Min Mat Mat Total 1560 | 53 464 195 500 348 Wait 4 | . . 1 3 . Move 1393 | 45 412 176 445 315 Hop 16 | . 1 1 13 1 Pick Up 13 | 2 9 2 . . Fast Attach 28 | 6 6 . 7 9 Attach 11 | . 1 . 6 4 Detach 9 | . 2 . 5 2 Swap 7 | . 4 2 . 1 Drop 14 | . 9 4 . 1 Fire 60 | . 20 9 21 10 Melee . | . . . . . Ram 4 | . . . . 4 Kick 1 | . . . . 1 Crush . | . . . . . Escape Stasis . | . . . . . Rewire . | . . . . . Trap . | . . . . . Miscellaneous . | . . . . . Route ------- -11/Scrapyard -10/Materials (discovered 2 exits: *Mat / *Min) -10/Mines (discovered 3 exits: *Mat x2 / [Sub]) -9/Materials (discovered 2 exits: *Mat / [*Min]) -8/Materials History --------- Turn | Location | Event 2 | -11/Scrapyard | Discovered new exit (range 16) 63 | -11/Scrapyard | Entered Materials 331 | -10/Materials | Discovered new exit (range 12) 375 | -10/Materials | Discovered new exit (range 11) 405 | -10/Materials | Entered Mines 408 | -10/Mines | Discovered new exit (range 9) 410 | -10/Mines | Discovered new exit (range 7) 413 | -10/Mines | Assisted by bots powering up and referring to "LRC-V3" 481 | -10/Mines | Assembled infested the area 488 | -10/Mines | Discovered new exit (range 9) 494 | -10/Mines | Entered Materials 494 | -9/Materials | Evolved 2 slots: Propulsion x1, Utility x1 520 | -9/Materials | Lost 3 allies 545 | -9/Materials | Discovered new exit (range 12) 551 | -9/Materials | Build established: Scavenger-Mutant 611 | -9/Materials | Discovered new exit (range 9) 694 | -9/Materials | Repaired Beam Rifle? 729 | -9/Materials | Entered another Materials area 729 | -8/Materials | Evolved 2 slots: Power x1, Propulsion x1 813 | -8/Materials | Lost 4 parts (1p3n) 829 | -8/Materials | Core integrity fell below 50% 850 | -8/Materials | Lost 3 parts (1u2w) 934 | -8/Materials | Core integrity fell below 20% 941 | -8/Materials | Lost 5 parts (1n2u2w) 966 | -8/Materials | Destroyed by H-55 Commando with Gauss Rifle Last Messages --------------- G-47 Trooper destroyed. Mining Laser destroyed. Acquired 21 matter. Kicked Y-45 Defender out of the way. R-06 Scavenger collects Aluminum Leg. Critical hit (Burn: +37). Triggered Shock Trap. The floor emits a surge of raw power. Triggered Shock Trap. The floor emits a surge of raw power. System corrupted (+1). Slug penetrates Wall. Penetrated by Slug. Reaction Control System destroyed. Carbon-fiber Leg destroyed. Slug penetrates Wall. Penetrated by Slug. Carbon-fiber Leg destroyed. K-01 Serf suffers critical hit (Burn). K-01 Serf destroyed. Map ----- +----------------------------------------------------+ | ?????????????????????????????????????????????????? | | ?????????????????????????????????????????????????? | | ?????????????????????????????????????????????????? | | ?????????????????????????????????????????????????? | | ?????????????????????????????????????????????????? | | ?????????????????????????????????????????????????? | | ?????????????????????????????????????????????????? | | ?????????????????????????????????????????????????? | | ?????????????????????????????????????????????????? | | ?????????????????????????????????????????????????? | | ???????????????????##????????????????????????????? | | ??????????????????? ????????????????????????????? | | ??????????????????? #######?????????????????????? | | ???????????????????? ?????????????????????? | | ???????????????????? ! ?????????????????????? | | ???????????????????? ?????????????????????? | | ?????????????????? """ #?????????????????????? | | ???????????????????""" #?????????????????????? | | ???????????????????""" #?????????????????????? | | ???????????????????? ! #?????????????????????? | | ????????????????????? #?????????????????????? | | ?????????????????????? +?????????????????????? | | ??????????????????????? #?????????????????????? | | ???????????????????????#u #?????????????????????? | | ???????????????????????# #?????????????????????? | | ??????????????????????## @ #?????????????????????? | | ???????????????????????+ #?????????????????????? | | ???????????????????????#u #?????????????????????? | | ???????????????????????# ###########???????????? | | ???????????????????????# # ! #???????????? | | ???????????????????????# # #???????????? | | ???????????????????????# # """ """?????????????? | | ???????????????????????# # """ """?????????????? | | ???????????????????????#* + """ """???????####### | | ???????????????????????#%= # #?????####### | | ???????????????????????# g # #?????## | | ???????????????????????#ggh# #?????## | | ???????????????????????# ################## """ | | ???????????????????????# # #???# # """ | | ???????????????????????# # #???# ! # """ | | ???????????????????????# + #???# # | | ???????????????????????# Y# "" #???# ] # | | ???????????????????????# u# S"" #???# # | | ???????????????????????# # "" #???# ####+# | | ???????????????????????# ############ = # | | ???????????????????????# ##############/### | | ???????????????????????# ^^ | | ???????????????????????# ^^ T | | ???????????????????????# | | ???????????????????????# ##############+### | +----------------------------------------------------+ Best States ------------- Heat Dissipation 41 Energy Generation 10 Energy Capacity 125 Matter Stores 267 Matter Capacity 300 Sight Range 18 Robot Scan Range 14 Terrain Scan Density 85 Resistance: KI 20 Resistance: TH 20 Resistance: EX 20 Resistance: EM 20 Resistance: I 20 Resistance: S 20 Resistance: P 20 Weapon Shielding 33 Evasion (%) 63 Recoil Reduction 1 Offensive Hacking 10 Item Schematics ----------------- None Robot Schematics ------------------ None Fabricated ------------ Nothing Alien Tech Used ----------------- None Achievements -------------- None Challenges ------------ None Game ------ Seed ServoMasterPick Manual? 0 Play Time 00:20:05 Cumulative 19.3 hours Start 2024.03.19 @ 14:16:49 End 2024.03.19 @ 14:37:44 Sessions 1 Manual Loads 0 Difficulty Adventurer Special Mode None Game No. 15 Rogue 0 Adventurer 15 Explorer 0 Win Type - Total 0 Types 0/0/0/0/0/0/0/0/0 Lore% 18 Gallery% 28 Achievement% 22 Wizard Run 0 Options --------- Layout 1 ASCII 0 Keyboard 1 Movement Vi Keybinds 0 Fullscreen 1 Font 24/Terminus Map View 50x40 Zoom Use 0% Tactical HUD 0 Map Filters NONE Filters NONE Steam 1 RUN: 675341a2-1a6c-4936-95b4-140ccbd82dcb